bitfinex/quotes_SOLUSD_20241029
["timestamp","ask_amount","ask_price","bid_price","bid_amount"]
[1730183543202,5.76387631,180.81,180.76,5.532]
[1730183543203,18.79292535,180.81,180.75,13.03054904]
[1730183543408,7.49814904,180.79,180.74,13.832]
[1730183544198,11.29477631,180.81,180.73,7.49814904]
[1730183544199,7.49814904,180.78,180.73,7.49814904]
[1730183544398,7.49814904,180.78,180.72,28.98464904]
[1730183544594,7.49814904,180.78,180.73,7.49814904]
[1730183545008,5.5313,180.79,180.74,7.49814904]
[1730183545193,23.776884,180.79,180.75,7.49814904]
[1730183545388,5.76387631,180.81,180.77,7.49814904]
[1730183546409,5.76387631,180.81,180.78,7.49814904]
[1730183546708,5.76387631,180.81,180.77,7.49814904]
[1730183547303,7.49814904,180.78,180.72,35.32]
[1730183547497,7.49814904,180.78,180.72,42.81814904]
[1730183548201,7.49814904,180.78,180.73,7.49814904]
[1730183548390,7.49814904,180.78,180.73,5.533]
[1730183549008,13.02984904,180.78,180.72,26.86494904]
[1730183550595,7.49814904,180.77,180.72,26.86494904]
[1730183550791,7.49814904,180.76,180.72,19.3668]
[1730183551695,7.49814904,180.77,180.72,19.3668]
[1730183554898,7.49814904,180.76,180.72,19.3668]
[1730183555900,7.49814904,180.77,180.72,19.3668]
[1730183557311,7.49814904,180.77,180.72,7.49814904]
[1730183557707,24.74009381,180.8,180.75,7.49814904]
[1730183558012,31.27503304,180.8,180.75,7.49814904]
[1730183558594,36.80603304,180.8,180.75,7.49814904]
[1730183560198,36.80603304,180.8,180.74,7.49814904]
[1730183560720,36.80603304,180.8,180.75,7.49814904]
[1730183561514,36.80603304,180.8,180.75,13.03054904]
[1730183561719,7.49814904,180.8,180.75,26.86174904]
[1730183562906,7.49814904,180.8,180.74,7.49814904]
[1730183563418,13.26202535,180.81,180.76,7.49814904]
[1730183563730,7.49814904,180.8,180.75,7.49814904]
[1730183564606,7.49814904,180.8,180.76,5.5321]
[1730183566703,13.26202535,180.81,180.76,7.49814904]
[1730183566908,5.76387631,180.81,180.78,7.49814904]
[1730183567710,9.77313916,180.83,180.79,7.49814904]
[1730183567907,4.12060763,180.82,180.79,7.49814904]
[1730183568103,8.81009154,180.83,180.79,7.49814904]
[1730183568311,4.12083902,180.82,180.8,7.49814904]
[1730183568624,8.81009154,180.83,180.79,7.49814904]
[1730183568797,4.12244447,180.82,180.8,5.5309]
[1730183568997,8.81009154,180.83,180.8,5.5309]
[1730183569221,4.12295171,180.82,180.8,5.5309]
[1730183569424,8.81009154,180.83,180.8,5.5309]
[1730183569626,4.12545413,180.82,180.8,5.5309]
[1730183569923,8.81009154,180.83,180.8,5.5309]
[1730183570127,4.12555014,180.82,180.8,5.5309]
[1730183570330,4.12796668,180.81,180.8,5.5309]
[1730183570905,4.12796668,180.81,180.78,7.49814904]
[1730183571105,21.83824058,180.83,180.77,7.49814904]
[1730183571305,4.12806972,180.82,180.77,7.49814904]
[1730183571611,4.12806972,180.81,180.77,7.49814904]
[1730183571807,4.12806972,180.8,180.77,7.49814904]
[1730183572002,16.30824058,180.83,180.77,7.49814904]
[1730183572216,10.74172614,180.82,180.77,7.49814904]
[1730183572417,10.74172614,180.81,180.78,5.5315]
[1730183572626,10.74172614,180.82,180.78,5.5315]
[1730183572829,10.74379113,180.81,180.78,5.5315]
[1730183573032,4.1327316,180.8,180.78,5.5315]
[1730183573209,16.30824058,180.83,180.78,5.5315]
[1730183573413,10.74452441,180.82,180.78,5.5315]
[1730183573706,10.74452441,180.81,180.78,5.5315]
[1730183573913,4.13250939,180.8,180.78,5.5315]
[1730183574115,16.30824058,180.83,180.78,5.5315]
[1730183574303,10.74488384,180.82,180.78,5.5315]
[1730183574506,10.74488384,180.81,180.78,5.5315]
[1730183574720,4.13264763,180.8,180.78,5.5315]
[1730183574918,16.30824058,180.83,180.78,5.5315]
[1730183575249,10.74565635,180.82,180.78,5.5315]
[1730183575406,10.74565635,180.81,180.78,5.5315]
[1730183575707,4.13294475,180.8,180.78,5.5315]
[1730183575904,7.49814904,180.82,180.78,5.5315]
[1730183576128,4.13354886,180.81,180.77,7.49814904]
[1730183576421,10.74709469,180.81,180.76,7.49814904]
[1730183576624,4.13354886,180.8,180.76,7.49814904]
[1730183576812,7.49814904,180.81,180.76,7.49814904]
[1730183577016,11.63222918,180.8,180.75,26.86184904]
[1730183577214,11.63222918,180.79,180.75,19.3637]
[1730183577412,7.49814904,180.8,180.75,26.86184904]
[1730183577618,4.13488788,180.79,180.75,26.86184904]
[1730183577819,7.49814904,180.8,180.75,26.86184904]
[1730183578026,4.13497122,180.79,180.75,26.86184904]
[1730183578228,7.49814904,180.8,180.75,26.86184904]
[1730183578421,4.13505106,180.79,180.75,26.86184904]
[1730183578624,7.49814904,180.8,180.75,26.86184904]
[1730183578817,4.13503663,180.79,180.75,26.86184904]
[1730183579011,7.49814904,180.8,180.75,26.86184904]
[1730183579213,4.13503481,180.79,180.75,26.86184904]
[1730183579439,7.49814904,180.8,180.75,26.86184904]
[1730183579738,4.13518342,180.79,180.75,26.86184904]
[1730183579912,7.49814904,180.8,180.75,19.3637]
[1730183580114,4.13513003,180.79,180.75,26.86184904]
[1730183580412,7.49814904,180.8,180.75,26.86184904]
[1730183580735,4.1353355,180.79,180.75,26.86184904]
[1730183580942,7.49814904,180.8,180.75,26.86184904]
[1730183581120,4.13543351,180.79,180.75,26.86184904]
[1730183581319,7.49814904,180.81,180.75,26.86184904]
[1730183581519,10.75277528,180.8,180.75,26.86184904]
[1730183581719,4.1356828,180.79,180.75,26.86184904]
[1730183582015,5.53,180.84,180.78,7.49814904]
[1730183582336,10.75289933,180.83,180.78,7.49814904]
[1730183582637,10.75289933,180.82,180.8,7.49814904]
[1730183582818,4.13573051,180.81,180.8,7.49814904]
[1730183583333,4.13573051,180.84,180.8,7.49814904]
[1730183583561,8.8068967,180.86,180.8,7.49814904]
[1730183583734,10.75598321,180.83,180.8,7.49814904]
[1730183583921,10.75598321,180.82,180.75,47.1262]
[1730183584116,4.13691662,180.81,180.79,5.5312]
[1730183584317,4.13679372,180.8,180.79,5.5312]
[1730183584518,7.49814904,180.83,180.79,19.3593]
[1730183584718,10.75571377,180.82,180.79,19.3593]
[1730183585637,4.13681051,180.81,180.79,19.3593]
[1730183585824,7.49814904,180.84,180.79,19.3593]
[1730183586012,10.75623576,180.83,180.79,19.3593]
[1730183586218,10.75623576,180.83,180.79,7.49814904]
[1730183586532,10.75623576,180.82,180.79,7.49814904]
[1730183586734,4.13701375,180.81,180.78,7.49814904]
[1730183587034,7.49814904,180.84,180.78,7.49814904]
[1730183587233,14.89231048,180.83,180.79,19.3593]
[1730183587446,10.75568006,180.82,180.79,19.3593]
[1730183587627,14.89231048,180.83,180.79,19.3593]
[1730183587937,22.39045952,180.83,180.79,19.3593]
[1730183589423,7.49814904,180.83,180.79,19.3593]
[1730183590332,14.3359967,180.86,180.76,13.8303]
[1730183590333,7.49814904,180.8,180.76,13.8303]
[1730183590535,7.49814904,180.78,180.73,7.49814904]
[1730183591122,7.49814904,180.76,180.71,47.0366]
[1730183591324,7.49814904,180.76,180.71,54.53474904]
[1730183592437,7.49814904,180.75,180.71,19.368]
[1730183592623,7.49814904,180.74,180.71,19.368]
[1730183593945,7.49814904,180.75,180.71,13.8343]
[1730183595545,7.49814904,180.74,180.71,13.8343]
[1730183596762,7.49814904,180.73,180.71,13.8343]
[1730183598021,7.49814904,180.72,180.69,5.5343]
[1730183598222,7.49814904,180.71,180.69,5.5343]
[1730183598443,7.49814904,180.7,180.68,5.5344]
[1730183598740,7.49814904,180.71,180.68,5.5344]
[1730183599533,7.49814904,180.71,180.68,19.371]
[1730183599843,7.49814904,180.71,180.68,13.8366]
[1730183601247,7.49814904,180.73,180.68,13.8366]
[1730183602226,7.49814904,180.71,180.68,13.8366]
[1730183607354,7.49814904,180.69,180.68,13.8366]
[1730183608052,7.49814904,180.69,180.61,15.247]
[1730183608053,7.49814904,180.69,180.62,26.87574904]
[1730183608258,7.49814904,180.67,180.62,26.87574904]
[1730183608642,7.49814904,180.68,180.62,26.87574904]
[1730183609746,7.49814904,180.68,180.63,7.49814904]
[1730183609943,7.49814904,180.69,180.63,7.49814904]
[1730183610149,5.5338,180.71,180.65,19.3744]
[1730183610353,7.49814904,180.69,180.65,19.3744]
[1730183613865,7.49814904,180.7,180.65,26.87254904]
[1730183614447,7.49814904,180.69,180.64,7.49814904]
[1730183615740,7.49814904,180.69,180.65,19.3744]
[1730183616867,7.49814904,180.69,180.65,13.8389]
[1730183618056,7.49814904,180.69,180.65,19.3744]
[1730183619039,7.49814904,180.66,180.62,19.3775]
[1730183619246,7.49814904,180.65,180.62,19.3775]
[1730183619658,7.49814904,180.66,180.62,19.3775]
[1730183620262,7.49814904,180.64,180.62,19.3775]
[1730183621370,7.49814904,180.63,180.62,13.8411]
[1730183621754,7.49814904,180.63,180.6,5.537]
[1730183622966,7.49814904,180.63,180.59,19.3809]
[1730183623767,7.49814904,180.64,180.59,26.87904904]
[1730183626150,86.1814,180.69,180.6,7.49814904]
[1730183626151,7.49814904,180.65,180.6,7.49814904]
[1730183627751,7.49814904,180.66,180.61,26.87674904]
[1730183628273,23.776884,180.68,180.63,7.49814904]
[1730183628450,23.776884,180.68,180.62,7.49814904]
[1730183628653,7.49814904,180.69,180.63,7.49814904]
[1730183629558,7.49814904,180.68,180.63,7.49814904]
[1730183630265,7.49814904,180.68,180.64,5.5358]
[1730183631751,7.49814904,180.68,180.64,19.3754]
[1730183632348,7.49814904,180.69,180.64,26.87354904]
[1730183633852,7.49814904,180.7,180.65,7.49814904]
[1730183634060,7.49814904,180.69,180.64,26.87354904]
[1730183635880,7.49814904,180.68,180.64,19.3754]
[1730183636253,7.49814904,180.69,180.64,26.87354904]
[1730183638655,29.310384,180.72,180.64,26.87354904]
[1730183638862,7.49814904,180.69,180.64,26.87354904]
[1730183639870,7.49814904,180.68,180.64,19.3754]
[1730183640966,7.49814904,180.7,180.65,7.49814904]
[1730183641160,7.49814904,180.69,180.64,7.49814904]
[1730183641352,7.49814904,180.69,180.63,7.49814904]
[1730183643187,7.49814904,180.69,180.64,19.3754]
[1730183644477,7.49814904,180.66,180.64,19.3754]
[1730183644669,7.49814904,180.67,180.64,19.3754]
[1730183645260,7.49814904,180.67,180.64,13.8396]
[1730183646268,23.776884,180.68,180.64,13.8396]
[1730183646469,31.27503304,180.68,180.64,13.8396]
[1730183647280,7.49814904,180.67,180.64,13.8396]
[1730183647970,7.49814904,180.67,180.61,7.49814904]
[1730183648588,7.49814904,180.66,180.61,7.49814904]
[1730183649687,7.49814904,180.66,180.62,19.3776]
[1730183650583,7.49814904,180.65,180.62,13.8412]
[1730183650783,7.49814904,180.63,180.62,13.8412]
[1730183651491,7.49814904,180.63,180.58,13.8436]
[1730183651667,7.49814904,180.64,180.59,7.49814904]
[1730183652782,7.49814904,180.64,180.6,19.3797]
[1730183654885,7.49814904,180.64,180.6,13.8427]
[1730183655384,7.49814904,180.63,180.6,13.8427]
[1730183656085,7.49814904,180.64,180.59,7.49814904]
[1730183657165,7.49814904,180.64,180.56,43.7129]
[1730183657166,39.199484,180.68,180.6,7.49814904]
[1730183657367,7.49814904,180.66,180.61,7.49814904]
[1730183658172,7.49814904,180.66,180.6,7.49814904]
[1730183659089,7.49814904,180.66,180.61,19.3786]
[1730183660081,7.49814904,180.65,180.61,19.3786]
[1730183660794,7.49814904,180.64,180.61,19.3786]
[1730183661389,7.49814904,180.64,180.61,13.8419]
[1730183661697,44.734184,180.68,180.61,13.8419]
[1730183661698,7.49814904,180.65,180.61,13.8419]
[1730183663498,7.49814904,180.65,180.61,19.3786]
[1730183665084,7.49814904,180.65,180.57,47.073]
[1730183665284,7.49814904,180.65,180.6,7.49814904]
[1730183666200,7.49814904,180.65,180.61,19.3786]
[1730183668607,7.49814904,180.65,180.57,47.073]
[1730183668795,7.49814904,180.64,180.58,7.49814904]
[1730183669403,7.49814904,180.64,180.59,7.49814904]
[1730183669875,7.49814904,180.64,180.6,19.3797]
[1730183671500,7.49814904,180.65,180.6,19.3797]
[1730183672075,7.49814904,180.65,180.6,26.87784904]
[1730183675790,7.49814904,180.65,180.59,7.49814904]
[1730183677206,7.49814904,180.65,180.6,19.3797]
[1730183683623,7.49814904,180.63,180.6,19.3797]
[1730183685012,7.49814904,180.63,180.6,13.8427]
[1730183685505,23.776884,180.65,180.6,13.8427]
[1730183685692,31.27503304,180.65,180.6,13.8427]
[1730183686102,7.49814904,180.64,180.6,13.8427]
[1730183686292,7.49814904,180.63,180.6,13.8427]
[1730183691723,7.49814904,180.62,180.6,13.8427]
[1730183692391,7.49814904,180.61,180.58,5.5377]
[1730183693710,7.49814904,180.61,180.57,19.3829]
[1730183698194,7.49814904,180.61,180.57,13.8449]
[1730183698496,29.04569773,180.68,180.6,7.49814904]
[1730183698691,7.49814904,180.66,180.61,7.49814904]
[1730183698897,7.49814904,180.66,180.6,7.49814904]
[1730183699305,4.13307707,180.65,180.6,7.49814904]
[1730183699511,7.49814904,180.66,180.6,7.49814904]
[1730183699719,22.15591614,180.68,180.61,5.5367]
[1730183699720,7.49814904,180.65,180.61,5.5367]
[1730183699907,7.49814904,180.63,180.61,5.5367]
[1730183700110,7.49814904,180.64,180.61,5.5367]
[1730183700618,7.49814904,180.64,180.6,13.8421]
[1730183700823,7.49814904,180.64,180.6,19.3791]
[1730183701025,7.49814904,180.65,180.6,26.87724904]
[1730183701395,27.69051614,180.68,180.62,7.49814904]
[1730183701599,42.02088925,180.67,180.62,7.49814904]
[1730183701799,4.13302162,180.66,180.61,7.49814904]
[1730183702006,31.27503304,180.67,180.61,7.49814904]
[1730183702323,4.13312925,180.66,180.61,7.49814904]
[1730183702517,31.27503304,180.67,180.62,5.5364]
[1730183702699,4.13316203,180.66,180.62,5.5364]
[1730183702902,31.27503304,180.67,180.62,5.5364]
[1730183703109,7.49814904,180.65,180.62,5.5364]
[1730183703421,7.49814904,180.65,180.6,21.34024904]
[1730183703645,7.49814904,180.65,180.61,5.5367]
[1730183704822,7.49814904,180.65,180.6,13.8421]
[1730183705727,7.49814904,180.66,180.6,21.34024904]
[1730183706029,11.62896113,180.65,180.6,26.87724904]
[1730183706206,7.49814904,180.65,180.6,26.87724904]
[1730183707226,7.49814904,180.65,180.6,13.8421]
[1730183707913,7.49814904,180.65,180.6,21.34024904]
[1730183708420,7.49814904,180.65,180.6,26.87724904]
[1730183709208,7.49814904,180.66,180.6,26.87724904]
[1730183709435,4.1310295,180.65,180.6,26.87724904]
[1730183709724,7.49814904,180.66,180.6,26.87724904]
[1730183710531,4.13092409,180.65,180.6,26.87724904]
[1730183710705,7.49814904,180.66,180.61,7.49814904]
[1730183710999,4.13094412,180.65,180.61,7.49814904]
[1730183711200,7.49814904,180.68,180.63,7.49814904]
[1730183711405,4.13123324,180.67,180.63,7.49814904]
[1730183711605,7.49814904,180.68,180.63,7.49814904]
[1730183711825,4.13137041,180.67,180.63,7.49814904]
[1730183712025,7.49814904,180.67,180.6,13.8421]
[1730183712326,7.49814904,180.67,180.62,7.49814904]
[1730183713030,7.49814904,180.65,180.6,21.34024904]
[1730183713232,7.49814904,180.66,180.61,7.49814904]
[1730183715117,7.49814904,180.66,180.62,5.5364]
[1730183716833,23.776884,180.7,180.62,5.5364]
[1730183717131,23.776884,180.7,180.61,7.49814904]
[1730183717132,7.49814904,180.66,180.61,7.49814904]
[1730183719015,7.49814904,180.66,180.62,5.5364]
[1730183720511,7.49814904,180.66,180.61,19.3782]
[1730183721736,7.49814904,180.64,180.61,19.3782]
[1730183721937,7.49814904,180.65,180.61,19.3782]
[1730183722737,7.49814904,180.65,180.6,7.49814904]
[1730183722935,7.49814904,180.66,180.6,7.49814904]
[1730183724238,7.49814904,180.65,180.61,5.5367]
[1730183725415,7.49814904,180.65,180.6,26.87724904]
[1730183727512,5.535,180.67,180.6,26.87724904]
[1730183727728,11.63319491,180.66,180.6,26.87724904]
[1730183728009,7.49814904,180.66,180.6,26.87724904]
[1730183728646,4.13483982,180.65,180.6,26.87724904]
[1730183728949,7.49814904,180.66,180.6,26.87724904]
[1730183729241,4.13484035,180.65,180.6,26.87724904]
[1730183729422,7.49814904,180.66,180.6,26.87724904]
[1730183729625,4.13377198,180.65,180.6,26.87724904]
[1730183729823,7.49814904,180.66,180.6,26.87724904]
[1730183730023,4.13366046,180.65,180.6,26.87724904]
[1730183730225,7.49814904,180.66,180.6,26.87724904]
[1730183731038,7.49814904,180.65,180.6,26.87724904]
[1730183731745,7.49814904,180.65,180.6,13.8421]
[1730183732040,7.49814904,180.64,180.6,13.8421]
[1730183732223,7.49814904,180.65,180.6,13.8421]
[1730183732921,7.49814904,180.65,180.6,19.3791]
[1730183735628,23.776884,180.67,180.6,19.3791]
[1730183735818,7.49814904,180.65,180.6,19.3791]
[1730183736436,7.49814904,180.64,180.6,19.3791]
[1730183737445,7.49814904,180.63,180.6,19.3791]
[1730183737949,76.89127309,180.69,180.53,15.9169]
[1730183737950,7.49814904,180.61,180.53,15.9169]
[1730183738122,7.49814904,180.6,180.54,19.3862]
[1730183738445,7.49814904,180.61,180.55,7.49814904]
[1730183739024,7.49814904,180.61,180.56,5.5383]
[1730183739335,7.49814904,180.61,180.56,19.3841]
[1730183740425,7.49814904,180.6,180.56,19.3841]
[1730183741451,7.49814904,180.59,180.56,19.3841]
[1730183742245,7.49814904,180.6,180.56,19.3841]
[1730183745130,7.49814904,180.6,180.56,13.8458]
[1730183745623,7.49814904,180.59,180.56,13.8458]
[1730183750452,7.49814904,180.57,180.54,5.5389]
[1730183750653,7.49814904,180.56,180.54,5.5389]
[1730183751737,7.49814904,180.56,180.52,47.0851]
[1730183752734,7.49814904,180.55,180.52,19.3879]
[1730183753746,7.49814904,180.55,180.52,13.8484]
[1730183758767,7.49814904,180.54,180.52,13.8484]
[1730183759447,7.49814904,180.55,180.52,13.8484]
[1730183760648,7.49814904,180.54,180.52,13.8484]
[1730183761567,7.49814904,180.53,180.5,5.5401]
[1730183762475,7.49814904,180.52,180.5,5.5401]
[1730183762769,7.49814904,180.52,180.48,19.3917]
[1730183762977,7.49814904,180.51,180.48,19.3917]
[1730183763855,7.49814904,180.51,180.48,13.8512]
[1730183764266,5.5392,180.54,180.48,13.8512]
[1730183764267,7.49814904,180.53,180.48,13.8512]
[1730183765047,7.49814904,180.53,180.48,19.3919]
[1730183765265,7.49814904,180.52,180.48,19.3919]
[1730183765949,7.49814904,180.53,180.48,26.89004904]
[1730183766861,7.49814904,180.53,180.48,13.8512]
[1730183767946,7.49814904,180.53,180.48,19.3919]
[1730183769450,7.49814904,180.52,180.48,19.3919]
[1730183769644,5.5386,180.55,180.48,19.3919]
[1730183769849,7.49814904,180.52,180.48,19.3919]
[1730183770771,7.49814904,180.52,180.48,13.8512]
[1730183771647,7.49814904,180.51,180.48,13.8512]
[1730183772059,7.49814904,180.5,180.47,5.541]
[1730183772352,7.49814904,180.48,180.45,13.8541]
[1730183773051,7.49814904,180.48,180.45,19.3958]
[1730183773450,7.49814904,180.49,180.45,19.3958]
[1730183774566,7.49814904,180.48,180.45,19.3958]
[1730183775570,7.49814904,180.48,180.45,13.8541]
[1730183775879,7.49814904,180.49,180.45,13.8541]
[1730183776371,7.49814904,180.5,180.45,21.35224904]
[1730183776568,29.315784,180.54,180.46,7.49814904]
[1730183776777,7.49814904,180.51,180.46,7.49814904]
[1730183777662,7.49814904,180.51,180.47,5.541]
[1730183778262,7.49814904,180.52,180.47,13.03914904]
[1730183778569,8.82094936,180.55,180.48,7.49814904]
[1730183778774,7.49814904,180.54,180.48,7.49814904]
[1730183778969,7.49814904,180.54,180.49,7.49814904]
[1730183779269,8.82094936,180.55,180.49,7.49814904]
[1730183779580,7.49814904,180.54,180.49,13.03834904]
[1730183781479,14.35964936,180.55,180.49,13.03834904]
[1730183781654,7.49814904,180.54,180.49,13.03834904]
[1730183782158,7.49814904,180.53,180.49,5.5402]
[1730183782559,7.49814904,180.54,180.49,13.03834904]
[1730183785458,21.8577984,180.55,180.5,7.49814904]
[1730183785660,21.8577984,180.55,180.49,26.88944904]
[1730183786478,7.49814904,180.54,180.49,26.88944904]
[1730183786664,7.49814904,180.53,180.49,19.3913]
[1730183790358,7.49814904,180.54,180.49,19.3913]
[1730183791558,7.49814904,180.53,180.49,13.8511]
[1730183791875,5.5392,180.54,180.49,13.8511]
[1730183791876,7.49814904,180.52,180.49,13.8511]
[1730183793181,5.5392,180.54,180.49,13.8511]
[1730183793482,7.49814904,180.52,180.47,5.541]
[1730183793660,7.49814904,180.52,180.47,13.03914904]
[1730183794089,31.27503304,180.53,180.47,13.03914904]
[1730183794689,8.82094936,180.55,180.51,7.49814904]
[1730183796681,0.95814525,180.6,180.54,7.49814904]
[1730183796982,13.03484904,180.62,180.56,7.49814904]
[1730183797179,5.5367,180.62,180.56,7.49814904]
[1730183797485,4.13204725,180.61,180.56,7.49814904]
[1730183797785,13.03484904,180.62,180.56,7.49814904]
[1730183797959,27.90960801,180.61,180.56,7.49814904]
[1730183798159,23.776884,180.61,180.56,7.49814904]
[1730183798854,29.313684,180.61,180.56,7.49814904]
[1730183799459,5.5364,180.63,180.57,7.49814904]
[1730183799770,27.90996871,180.62,180.58,7.49814904]
[1730183799975,7.49814904,180.63,180.58,7.49814904]
[1730183800978,16.1731,180.64,180.58,19.3818]
[1730183801194,23.776884,180.65,180.6,7.49814904]
[1730183801389,5.5355,180.66,180.61,7.49814904]
[1730183801693,4.13222976,180.65,180.62,7.49814904]
[1730183801865,7.49814904,180.66,180.61,7.49814904]
[1730183802282,7.49814904,180.65,180.6,7.49814904]
[1730183802686,7.49814904,180.66,180.61,7.49814904]
[1730183802877,13.03354904,180.66,180.61,7.49814904]
[1730183804179,13.03294904,180.68,180.63,7.49814904]
[1730183804377,4.12844982,180.67,180.63,7.49814904]
[1730183804561,13.03294904,180.68,180.63,7.49814904]
[1730183804765,4.12844993,180.67,180.63,7.49814904]
[1730183804982,13.03294904,180.68,180.63,7.49814904]
[1730183805186,13.03294904,180.68,180.62,13.03444904]
[1730183805564,13.03294904,180.68,180.63,7.49814904]
[1730183806469,13.03294904,180.68,180.62,7.49814904]
[1730183807386,7.49814904,180.67,180.61,21.34004904]
[1730183807584,7.49814904,180.66,180.61,26.87674904]
[1730183807775,7.49814904,180.66,180.61,19.3786]
[1730183808578,7.49814904,180.66,180.61,26.87674904]
[1730183810787,7.49814904,180.65,180.61,19.3786]
[1730183811587,13.03344904,180.66,180.61,19.3786]
[1730183811773,7.49814904,180.66,180.61,26.87674904]
[1730183813495,36.81013304,180.67,180.62,7.49814904]
[1730183813867,7.49814904,180.66,180.61,26.87674904]
[1730183814987,29.311984,180.67,180.61,26.87674904]
[1730183815181,7.49814904,180.66,180.61,26.87674904]
[1730183816375,36.81013304,180.67,180.62,7.49814904]
[1730183817085,12.90070804,180.73,180.65,7.49814904]
[1730183817086,11.30792488,180.71,180.65,7.49814904]
[1730183817284,18.80607392,180.71,180.65,7.49814904]
[1730183817497,13.03184904,180.71,180.65,7.49814904]
[1730183818366,7.49814904,180.7,180.65,7.49814904]
[1730183819496,7.49814904,180.7,180.65,13.03354904]
[1730183819997,7.49814904,180.67,180.63,5.5361]
[1730183820188,7.49814904,180.67,180.62,5.5364]
[1730183820687,7.49814904,180.67,180.62,26.87574904]
[1730183821579,7.49814904,180.67,180.62,13.8412]
[1730183821782,7.49814904,180.67,180.62,19.3776]
[1730183822873,7.49814904,180.66,180.62,19.3776]
[1730183823274,7.49814904,180.67,180.62,26.87574904]
[1730183823801,75.5334,180.72,180.62,19.3776]
[1730183823972,7.49814904,180.66,180.62,19.3776]
[1730183825194,7.49814904,180.66,180.62,13.8412]
[1730183825894,7.49814904,180.63,180.58,26.87974904]
[1730183826099,7.49814904,180.63,180.58,19.3816]
[1730183826597,7.49814904,180.61,180.58,19.3816]
[1730183826799,7.49814904,180.6,180.58,19.3816]
[1730183826973,7.49814904,180.62,180.58,19.3816]
[1730183827178,7.49814904,180.62,180.58,13.8439]
[1730183829385,7.49814904,180.61,180.58,13.8439]
[1730183829589,70.0,180.67,180.55,19.3848]
[1730183829590,7.49814904,180.59,180.55,19.3848]
[1730183832683,7.49814904,180.58,180.55,13.8464]
[1730183833578,7.49814904,180.57,180.55,13.8464]
[1730183833989,7.49814904,180.56,180.52,21.8459]
[1730183834510,7.49814904,180.57,180.52,29.34404904]
[1730183834806,7.49814904,180.57,180.52,43.19284904]
[1730183836615,7.49814904,180.57,180.52,35.6947]
[1730183836787,7.49814904,180.56,180.52,35.6947]
[1730183837288,7.49814904,180.56,180.52,19.388]
[1730183837790,7.49814904,180.55,180.52,13.8488]
[1730183838590,7.49814904,180.56,180.52,13.8488]
[1730183840007,7.49814904,180.53,180.5,5.5401]
[1730183840802,7.49814904,180.54,180.5,5.5401]
[1730183840999,7.49814904,180.55,180.5,5.5401]
[1730183844905,7.49814904,180.54,180.5,5.5401]
[1730183845094,7.49814904,180.53,180.5,5.5401]
[1730183845803,7.49814904,180.52,180.48,13.8512]
[1730183846006,85.0405,180.57,180.48,13.8512]
[1730183846007,7.49814904,180.51,180.48,19.3919]
[1730183846599,7.49814904,180.52,180.48,19.3919]
[1730183846917,7.49814904,180.52,180.48,13.8512]
[1730183847618,7.49814904,180.53,180.48,13.8512]
[1730183847998,7.49814904,180.53,180.48,19.3919]
[1730183848316,7.49814904,180.53,180.48,26.89004904]
[1730183848509,7.49814904,180.55,180.49,7.49814904]
[1730183848897,7.49814904,180.54,180.49,7.49814904]
[1730183849598,7.49814904,180.54,180.5,5.5401]
[1730183852924,7.49814904,180.53,180.48,21.34934904]
[1730183853702,7.49814904,180.54,180.48,21.34934904]
[1730183853902,7.49814904,180.54,180.48,26.89004904]
[1730183854720,7.49814904,180.54,180.49,7.49814904]
[1730183855522,13.03674904,180.55,180.5,7.49814904]
[1730183856018,7.49814904,180.55,180.5,7.49814904]
[1730183856230,13.03644904,180.57,180.51,7.49814904]
[1730183856722,5.5383,180.57,180.51,7.49814904]
[1730183856925,7.49814904,180.56,180.51,7.49814904]
[1730183857502,7.49814904,180.56,180.51,13.03784904]
[1730183860713,5.5383,180.57,180.51,5.5397]
[1730183860714,7.49814904,180.55,180.51,5.5397]
[1730183861021,7.49814904,180.54,180.5,5.5401]
[1730183861612,7.49814904,180.53,180.49,13.8511]
[1730183861812,7.49814904,180.53,180.49,19.3915]
[1730183865334,7.49814904,180.54,180.49,7.49814904]
[1730183865631,7.49814904,180.54,180.48,7.49814904]
[1730183866134,7.49814904,180.54,180.49,7.49814904]
[1730183866315,7.49814904,180.54,180.5,5.5401]
[1730183873849,7.49814904,180.53,180.48,7.49814904]
[1730183874141,7.49814904,180.54,180.49,7.49814904]
[1730183875050,7.49814904,180.54,180.49,13.03834904]
[1730183878648,7.49814904,180.51,180.47,5.541]
[1730183879326,7.49814904,180.52,180.47,13.03914904]
[1730183880132,7.49814904,180.52,180.47,26.89184904]
[1730183882256,7.49814904,180.53,180.47,26.89184904]
[1730183882434,5.5389,180.54,180.49,7.49814904]
[1730183882827,13.03704904,180.54,180.49,7.49814904]
[1730183883326,13.03704904,180.54,180.49,13.03854904]
[1730183884266,13.03704904,180.54,180.49,5.5404]